[Event "GER-chW Blitz 2019"]
[Site "Magdeburg"]
[Date "2019.05.25"]
[Round "2.6"]
[White "Gheng, Simona"]
[Black "Kotyk, Valeriya"]
[Result "1-0"]
[ECO "C05"]
[WhiteElo "1991"]
[BlackElo "1739"]
[Annotator "NA"]
[PlyCount "95"]
[EventDate "2019.05.25"]
[EventType "tourn"]
[EventCountry "GER"]
[SourceTitle "playchess.com"]
[Source "ChessBase"]
[SourceQuality "1"]
[TimeControl "180+2"]

1. e4 {[%emt 0:00:01]} e6 {[%emt 0:00:00]} 2. d4 {[%emt 0:00:01]} d5 {[%emt 0:00:00]} 3. Nd2 {[%emt 0:00:01]} Nf6 {[%emt 0:00:00]} 4. Bd3 {[%emt 0:00:03]} dxe4 {[%emt 0:00:04]} 5. Nxe4 {[%emt 0:00:02]} Be7 {[%emt 0:00:09]} 6. Nf3 {[%emt 0:00:02]} O-O {[%emt 0:00:02]} 7. O-O {[%emt 0:00:02]} b6 {[%emt 0:00:02]} 8. c3 {[%emt 0:00:01]} Bb7 {[%emt 0:00:01]} 9. Nxf6+ {[%emt 0:00:07]} Bxf6 {[%emt 0:00:01]} 10. Bc2 {[%emt 0:00:05]} Nd7 {[%emt 0:00:03]} 11. Qd3 {[%emt 0:00:01]} g6 {[%emt 0:00:01]} 12. Bh6 {[%emt 0:00:01]} Re8 {[%emt 0:00:04]} 13. Rfe1 {[%emt 0:00:15]} c5 {[%emt 0:00:05]} 14. Rad1 {[%emt 0:00:07]} cxd4 {[%emt 0:00:04]} 15. Nxd4 {[%emt 0:00:01]} Nc5 {[%emt 0:00:05]} 16. Qg3 {[%emt 0:00:22]} Qb8 {[%emt 0:00:04]} 17. Qxb8 {[%emt 0:00:21]} Raxb8 {[%emt 0:00:00]} 18. Nb5 {[%emt 0:00:04]} a6 {[%emt 0:00:21]} 19. Nd6 {[%emt 0:00:04]} Red8 {[%emt 0:00:08]} 20. Bf4 {[%emt 0:00:04]} Ra8 {[%emt 0:00:06]} 21. Nxb7 {[%emt 0:00:04]} Nxb7 {[%emt 0:00:01]} 22. Bc7 {[%emt 0:00:03]} Rxd1 {[%emt 0:00:01]} 23. Rxd1 {[%emt 0:00:01]} b5 {[%emt 0:00:03]} 24. Be4 {[%emt 0:00:02]} Rc8 {[%emt 0:00:09]} 25. Bxb7 {[%emt 0:00:05]} Rxc7 {[%emt 0:00:01]} 26. Bxa6 {[%emt 0:00:01]} Rc5 {[%emt 0:00:09]} 27. g3 {[%emt 0:00:05]} Kf8 {[%emt 0:00:08]} 28. Rd7 {[%emt 0:00:05]} b4 {[%emt 0:00:22]} 29. cxb4 {[%emt 0:00:09]} Rc2 {[%emt 0:00:01]} 30. b5 {[%emt 0:00:09]} Rxb2 {[%emt 0:00:02]} 31. a4 {[%emt 0:00:02]} Bd4 {[%emt 0:00:07]} 32. Rxd4 {[%emt 0:00:02]} Ke7 {[%emt 0:00:04]} 33. Kg2 {[%emt 0:00:06]} f6 {[%emt 0:00:01]} 34. Kf3 e5 35. Rc4 {[%emt 0:00:02]} f5 {[%emt 0:00:03]} 36. Rc6 {[%emt 0:00:03]} Rb3+ {[%emt 0:00:03]} 37. Ke2 {[%emt 0:00:02]} Kd7 {[%emt 0:00:04]} 38. Bc8+ {[%emt 0:00:03]} Ke7 {[%emt 0:00:03]} 39. b6 {[%emt 0:00:02]} g5 {[%emt 0:00:06]} 40. b7 {[%emt 0:00:03]} f4 {[%emt 0:00:02]} 41. gxf4 {[%emt 0:00:01]} gxf4 {[%emt 0:00:01]} 42. a5 {[%emt 0:00:02]} e4 {[%emt 0:00:02]} 43. a6 {[%emt 0:00:02]} Rb2+ {[%emt 0:00:04]} 44. Kd1 {[%emt 0:00:02]} e3 {[%emt 0:00:11]} 45. fxe3 {[%emt 0:00:01]} fxe3 {[%emt 0:00:01]} 46. Bg4 {[%emt 0:00:06]} Kf7 {[%emt 0:00:08]} 47. Rc8 {[%emt 0:00:04]} Rxh2 {[%emt 0:00:06]} 48. b8=Q {[%emt 0:00:05]} 1-0

[Event "GER-chW Blitz 2019"]
[Site "Magdeburg"]
[Date "2019.05.25"]
[Round "2.7"]
[White "Kunze, Kerstin"]
[Black "Silz, Elisa"]
[Result "1-0"]
[ECO "B53"]
[WhiteElo "2066"]
[BlackElo "1977"]
[Annotator "NA"]
[PlyCount "167"]
[EventDate "2019.05.25"]
[EventType "tourn"]
[EventCountry "GER"]
[SourceTitle "playchess.com"]
[Source "ChessBase"]
[SourceQuality "1"]
[TimeControl "180+2"]

1. e4 {[%emt 0:00:00]} c5 {[%emt 0:00:00]} 2. Nf3 {[%emt 0:00:01]} d6 {[%emt 0:00:00]} 3. d4 {[%emt 0:00:02]} cxd4 {[%emt 0:00:01]} 4. Qxd4 {[%emt 0:00:01]} Nc6 {[%emt 0:00:01]} 5. Bb5 {[%emt 0:00:01]} Bd7 {[%emt 0:00:01]} 6. Bxc6 {[%emt 0:00:01]} Bxc6 {[%emt 0:00:00]} 7. c4 {[%emt 0:00:01]} Nf6 {[%emt 0:00:02]} 8. Nc3 {[%emt 0:00:01]} e6 {[%emt 0:00:02]} 9. O-O {[%emt 0:00:02]} Be7 {[%emt 0:00:01]} 10. Re1 {[%emt 0:00:08]} O-O {[%emt 0:00:02]} 11. b3 {[%emt 0:00:10]} Nd7 {[%emt 0:00:07]} 12. Bb2 {[%emt 0:00:07]} Nf6 {[%emt 0:00:15]} 13. Rad1 {[%emt 0:00:05]} Qc7 {[%emt 0:00:01]} 14. h3 {[%emt 0:00:05]} a6 {[%emt 0:00:00]} 15. Qd2 {[%emt 0:00:19]} b5 {[%emt 0:00:06]} 16. Qe2 {[%emt 0:00:42]} b4 {[%emt 0:00:05]} 17. Nb1 {[%emt 0:00:10]} Bxe4 {[%emt 0:00:10]} 18. Nd4 {[%emt 0:00:04]} Bg6 {[%emt 0:00:10]} 19. Qf3 {[%emt 0:00:05]} Rfe8 {[%emt 0:00:15]} 20. Nc6 {[%emt 0:00:15]} Be4 {[%emt 0:00:17]} 21. Nxe7+ {[%emt 0:00:01]} Qxe7 {[%emt 0:00:02]} 22. Rxe4 {[%emt 0:00:01]} Nxe4 {[%emt 0:00:02]} 23. Qxe4 {[%emt 0:00:01]} Rad8 {[%emt 0:00:09]} 24. Nd2 {[%emt 0:00:02]} f5 {[%emt 0:00:05]} 25. Qd4 {[%emt 0:00:04]} e5 {[%emt 0:00:03]} 26. Qd5+ {[%emt 0:00:02]} Qf7 {[%emt 0:00:05]} 27. Qxf7+ {[%emt 0:00:07]} Kxf7 {[%emt 0:00:00]} 28. Nf1 {[%emt 0:00:01]} f4 {[%emt 0:00:06]} 29. f3 {[%emt 0:00:00]} g5 {[%emt 0:00:02]} 30. Rd5 {[%emt 0:00:02]} Re6 {[%emt 0:00:10]} 31. Nd2 {[%emt 0:00:01]} h6 {[%emt 0:00:03]} 32. Ne4 {[%emt 0:00:01]} Ke7 {[%emt 0:00:05]} 33. Bc1 {[%emt 0:00:04]} Rg6 {[%emt 0:00:07]} 34. Bd2 {[%emt 0:00:01]} Rb8 {[%emt 0:00:05]} 35. Be1 {[%emt 0:00:10]} h5 {[%emt 0:00:06]} 36. Nxg5 {[%emt 0:00:21]} Rbg8 {[%emt 0:00:16]} 37. h4 {[%emt 0:00:02]} Rb8 {[%emt 0:00:10]} 38. Ra5 {[%emt 0:00:01]} Rb6 {[%emt 0:00:02]} 39. Rd5 {[%emt 0:00:01]} Rb8 {[%emt 0:00:03]} 40. Ne4 {[%emt 0:00:01]} Rbg8 {[%emt 0:00:03]} 41. Ng5 {[%emt 0:00:01]} Rb8 {[%emt 0:00:00]} 42. Bf2 {[%emt 0:00:02]} Kd7 {[%emt 0:00:06]} 43. Ne4 {[%emt 0:00:04]} Ke7 {[%emt 0:00:02]} 44. Ra5 {[%emt 0:00:04]} Rbg8 {[%emt 0:00:09]} 45. Ng5 {[%emt 0:00:01]} Ra8 46. Kf1 {[%emt 0:00:03]} Kd7 {[%emt 0:00:05]} 47. Rd5 {[%emt 0:00:02]} Kc6 {[%emt 0:00:03]} 48. Ke2 {[%emt 0:00:01]} a5 {[%emt 0:00:04]} 49. Be1 {[%emt 0:00:21]} a4 {[%emt 0:00:09]} 50. Bxb4 {[%emt 0:00:03]} axb3 {[%emt 0:00:01]} 51. axb3 {[%emt 0:00:01]} Ra2+ {[%emt 0:00:00]} 52. Kd3 {[%emt 0:00:01]} Rxg2 {[%emt 0:00:06]} 53. Ke4 {[%emt 0:00:00]} Rf6 {[%emt 0:00:06]} 54. c5 {[%emt 0:00:06]} Re2+ {[%emt 0:00:03]} 55. Kd3 {[%emt 0:00:01]} Re3+ {[%emt 0:00:02]} 56. Kc2 {[%emt 0:00:03]} dxc5 {[%emt 0:00:09]} 57. Rxc5+ Kb6 58. Rd5 {[%emt 0:00:03]} Rc6+ {[%emt 0:00:02]} 59. Kb2 {[%emt 0:00:01]} Re2+ {[%emt 0:00:02]} 60. Ka3 {[%emt 0:00:01]} Rcc2 {[%emt 0:00:04]} 61. Be7 {[%emt 0:00:11]} Rc3 {[%emt 0:00:08]} 62. Kb4 {[%emt 0:00:06]} Ree3 {[%emt 0:00:01]} 63. Rd7 {[%emt 0:00:05]} Rxb3+ 64. Kc4 {[%emt 0:00:02]} Rbc3+ {[%emt 0:00:06]} 65. Kd5 {[%emt 0:00:01]} Rcd3+ {[%emt 0:00:02]} 66. Ke6 {[%emt 0:00:00]} Rxd7 {[%emt 0:00:02]} 67. Kxd7 {[%emt 0:00:01]} Kb5 {[%emt 0:00:05]} 68. Ke6 {[%emt 0:00:02]} Kc4 {[%emt 0:00:01]} 69. Kf5 {[%emt 0:00:00]} Kd3 {[%emt 0:00:01]} 70. Bc5 {[%emt 0:00:01]} Re2 {[%emt 0:00:02]} 71. Bd6 {[%emt 0:00:01]} Kd4 {[%emt 0:00:02]} 72. Bb8 {[%emt 0:00:04]} Re3 {[%emt 0:00:05]} 73. Ba7+ {[%emt 0:00:01]} Kd3 {[%emt 0:00:01]} 74. Bxe3 {[%emt 0:00:06]} fxe3 {[%emt 0:00:00]} 75. f4 {[%emt 0:00:01]} e2 {[%emt 0:00:03]} 76. Nf3 {[%emt 0:00:00]} Ke3 {[%emt 0:00:01]} 77. Ne1 {[%emt 0:00:01]} Kf2 {[%emt 0:00:02]} 78. Nc2 {[%emt 0:00:00]} Kg3 {[%emt 0:00:05]} 79. fxe5 Kxh4 {[%emt 0:00:02]} 80. e6 {[%emt 0:00:02]} Kg3 {[%emt 0:00:01]} 81. e7 {[%emt 0:00:01]} h4 {[%emt 0:00:00]} 82. e8=Q {[%emt 0:00:01]} h3 {[%emt 0:00:01]} 83. Qe3+ {[%emt 0:00:02]} Kg2 {[%emt 0:00:02]} 84. Qxe2+ {[%emt 0:00:01]} 1-0

[Event "GER-chW Blitz 2019"]
[Site "Magdeburg"]
[Date "2019.05.25"]
[Round "2.9"]
[White "Daemering, Katrin"]
[Black "Birkholz, Olga"]
[Result "1-0"]
[ECO "A05"]
[WhiteElo "2003"]
[BlackElo "2031"]
[Annotator "NA"]
[PlyCount "139"]
[EventDate "2019.05.25"]
[EventType "tourn"]
[EventCountry "GER"]
[SourceTitle "playchess.com"]
[Source "ChessBase"]
[SourceQuality "1"]
[TimeControl "180+2"]

1. Nf3 {[%emt 0:00:00]} Nf6 {[%emt 0:00:00]} 2. g3 {[%emt 0:00:02]} g6 {[%emt 0:00:01]} 3. Bg2 {[%emt 0:00:01]} Bg7 {[%emt 0:00:00]} 4. d3 {[%emt 0:00:01]} O-O {[%emt 0:00:02]} 5. e4 {[%emt 0:00:01]} d6 {[%emt 0:00:01]} 6. O-O {[%emt 0:00:02]} Nbd7 {[%emt 0:00:07]} 7. h3 {[%emt 0:00:01]} Rb8 {[%emt 0:00:01]} 8. c4 {[%emt 0:00:06]} a6 {[%emt 0:00:06]} 9. Nc3 {[%emt 0:00:09]} b5 {[%emt 0:00:08]} 10. cxb5 {[%emt 0:00:07]} axb5 {[%emt 0:00:01]} 11. a3 {[%emt 0:00:05]} Ba6 {[%emt 0:00:08]} 12. Be3 {[%emt 0:00:09]} c5 {[%emt 0:00:04]} 13. Ne1 {[%emt 0:00:10]} Qc8 {[%emt 0:00:08]} 14. f4 {[%emt 0:00:12]} b4 {[%emt 0:00:23]} 15. axb4 {[%emt 0:00:16]} cxb4 {[%emt 0:00:01]} 16. Ne2 {[%emt 0:00:03]} Nc5 {[%emt 0:00:10]} 17. Rc1 {[%emt 0:00:22]} Qd8 {[%emt 0:00:09]} 18. e5 {[%emt 0:00:10]} Nfd7 {[%emt 0:00:03]} 19. d4 {[%emt 0:00:02]} Bxe2 {[%emt 0:00:19]} 20. Qxe2 {[%emt 0:00:01]} Nb3 {[%emt 0:00:00]} 21. Rd1 {[%emt 0:00:10]} Na5 {[%emt 0:00:14]} 22. Nd3 {[%emt 0:00:09]} b3 {[%emt 0:00:05]} 23. Rc1 {[%emt 0:00:08]} Nb6 {[%emt 0:00:04]} 24. Bd2 {[%emt 0:00:09]} Nac4 {[%emt 0:00:02]} 25. Bc3 {[%emt 0:00:02]} d5 {[%emt 0:00:04]} 26. Nc5 {[%emt 0:00:02]} Nd7 {[%emt 0:00:10]} 27. Bxd5 {[%emt 0:00:06]} Nxc5 {[%emt 0:00:05]} 28. Bxc4 {[%emt 0:00:02]} Na4 {[%emt 0:00:03]} 29. Rfd1 {[%emt 0:00:11]} e6 {[%emt 0:00:02]} 30. Be1 {[%emt 0:00:05]} Qb6 {[%emt 0:00:04]} 31. Bf2 {[%emt 0:00:04]} Qa5 {[%emt 0:00:07]} 32. d5 {[%emt 0:00:05]} exd5 {[%emt 0:00:09]} 33. Rxd5 {[%emt 0:00:01]} Qc7 {[%emt 0:00:08]} 34. Rdd1 {[%emt 0:00:05]} Qe7 {[%emt 0:00:02]} 35. Bd4 {[%emt 0:00:08]} Rfc8 {[%emt 0:00:03]} 36. Qd3 {[%emt 0:00:12]} Nc5 {[%emt 0:00:03]} 37. Qe3 {[%emt 0:00:06]} Ne6 {[%emt 0:00:04]} 38. Bxe6 {[%emt 0:00:03]} Qxe6 {[%emt 0:00:01]} 39. Rxc8+ {[%emt 0:00:02]} Rxc8 {[%emt 0:00:00]} 40. Bc3 {[%emt 0:00:04]} Bf8 {[%emt 0:00:03]} 41. Kh2 {[%emt 0:00:03]} Bc5 {[%emt 0:00:01]} 42. Qd3 {[%emt 0:00:03]} Bb6 {[%emt 0:00:05]} 43. Qd6 {[%emt 0:00:04]} Qc4 {[%emt 0:00:10]} 44. Rd2 {[%emt 0:00:07]} Be3 {[%emt 0:00:02]} 45. Rd3 {[%emt 0:00:09]} Qe4 {[%emt 0:00:04]} 46. e6 {[%emt 0:00:04]} Qxe6 {[%emt 0:00:07]} 47. Qxe6 fxe6 {[%emt 0:00:01]} 48. Rxe3 {[%emt 0:00:04]} Kf7 {[%emt 0:00:00]} 49. Rd3 {[%emt 0:00:01]} Rc7 {[%emt 0:00:02]} 50. Kg2 {[%emt 0:00:02]} Ke7 {[%emt 0:00:01]} 51. Kf3 {[%emt 0:00:01]} Kf7 {[%emt 0:00:01]} 52. Ke4 {[%emt 0:00:01]} Rc4+ {[%emt 0:00:02]} 53. Ke3 {[%emt 0:00:02]} Rc7 {[%emt 0:00:01]} 54. Kd4 {[%emt 0:00:01]} Rd7+ {[%emt 0:00:01]} 55. Kc4 {[%emt 0:00:02]} Rc7+ {[%emt 0:00:01]} 56. Kxb3 Rb7+ 57. Kc2 {[%emt 0:00:02]} Ke7 {[%emt 0:00:03]} 58. Be5 {[%emt 0:00:01]} h5 {[%emt 0:00:02]} 59. Rc3 {[%emt 0:00:01]} Rd7 {[%emt 0:00:01]} 60. Rc7 {[%emt 0:00:01]} Rxc7+ {[%emt 0:00:02]} 61. Bxc7 {[%emt 0:00:01]} Kd7 {[%emt 0:00:00]} 62. Be5 {[%emt 0:00:01]} Kc6 {[%emt 0:00:01]} 63. Kc3 {[%emt 0:00:00]} Kd5 {[%emt 0:00:01]} 64. b4 {[%emt 0:00:01]} Kc6 {[%emt 0:00:02]} 65. Kc4 {[%emt 0:00:01]} Kb6 {[%emt 0:00:02]} 66. Bd6 {[%emt 0:00:01]} Kc6 {[%emt 0:00:01]} 67. Bc5 {[%emt 0:00:02]} Kd7 {[%emt 0:00:01]} 68. Kd4 {[%emt 0:00:00]} Kc6 {[%emt 0:00:00]} 69. Ke5 {[%emt 0:00:01]} Kd7 {[%emt 0:00:02]} 70. b5 {[%emt 0:00:01]} 1-0

[Event "GER-chW Blitz 2019"]
[Site "Magdeburg"]
[Date "2019.05.25"]
[Round "2.10"]
[White "Sieber, Fiona"]
[Black "Hofmann, Karina"]
[Result "1-0"]
[ECO "B00"]
[WhiteElo "2250"]
[BlackElo "1700"]
[Annotator "NA"]
[PlyCount "109"]
[EventDate "2019.05.25"]
[EventType "tourn"]
[EventCountry "GER"]
[SourceTitle "playchess.com"]
[Source "ChessBase"]
[SourceQuality "1"]
[TimeControl "180+2"]

1. e4 {[%emt 0:00:00]} b6 {[%emt 0:00:01]} 2. d4 {[%emt 0:00:01]} Bb7 {[%emt 0:00:01]} 3. Bd3 {[%emt 0:00:06]} g6 {[%emt 0:00:03]} 4. Ne2 {[%emt 0:00:03]} Bg7 {[%emt 0:00:01]} 5. Nbc3 {[%emt 0:00:02]} e6 {[%emt 0:00:02]} 6. Be3 {[%emt 0:00:04]} Ne7 {[%emt 0:00:01]} 7. Qd2 {[%emt 0:00:09]} d5 {[%emt 0:00:02]} 8. O-O-O {[%emt 0:00:15]} dxe4 {[%emt 0:00:05]} 9. Bxe4 {[%emt 0:00:03]} Nd5 {[%emt 0:00:16]} 10. Bg5 {[%emt 0:00:25]} Bf6 {[%emt 0:00:12]} 11. Bxf6 {[%emt 0:00:06]} Qxf6 {[%emt 0:00:02]} 12. Nxd5 {[%emt 0:00:05]} Bxd5 {[%emt 0:00:02]} 13. Bxd5 {[%emt 0:00:01]} exd5 {[%emt 0:00:02]} 14. Qh6 {[%emt 0:00:09]} Nd7 {[%emt 0:00:17]} 15. Nc3 {[%emt 0:00:09]} O-O-O {[%emt 0:00:08]} 16. Nxd5 {[%emt 0:00:04]} Qxf2 {[%emt 0:00:02]} 17. Rhf1 {[%emt 0:00:11]} Qxg2 {[%emt 0:00:08]} 18. Ne7+ {[%emt 0:00:13]} Kb8 {[%emt 0:00:04]} 19. d5 {[%emt 0:00:05]} Kb7 {[%emt 0:00:09]} 20. Rxf7 {[%emt 0:00:03]} Ne5 {[%emt 0:00:12]} 21. Rf6 {[%emt 0:00:06]} Qe4 {[%emt 0:00:07]} 22. Qf4 {[%emt 0:00:17]} Qxf4+ 23. Rxf4 {[%emt 0:00:00]} Rhe8 {[%emt 0:00:09]} 24. d6 {[%emt 0:00:13]} cxd6 {[%emt 0:00:12]} 25. Nd5 {[%emt 0:00:01]} Rf8 {[%emt 0:00:09]} 26. Rdf1 {[%emt 0:00:06]} Rxf4 {[%emt 0:00:18]} 27. Rxf4 {[%emt 0:00:02]} Rd7 {[%emt 0:00:01]} 28. b3 {[%emt 0:00:03]} g5 {[%emt 0:00:07]} 29. Rf5 {[%emt 0:00:02]} h6 {[%emt 0:00:02]} 30. Kd2 {[%emt 0:00:02]} Ng4 {[%emt 0:00:01]} 31. h3 {[%emt 0:00:03]} Ne5 {[%emt 0:00:06]} 32. Ke3 {[%emt 0:00:03]} Rf7 {[%emt 0:00:04]} 33. Ke4 {[%emt 0:00:06]} Rxf5 {[%emt 0:00:19]} 34. Kxf5 {[%emt 0:00:01]} Kc6 {[%emt 0:00:03]} 35. Ke6 {[%emt 0:00:02]} Nf3 {[%emt 0:00:04]} 36. Ne7+ {[%emt 0:00:05]} Kc5 {[%emt 0:00:03]} 37. Nf5 {[%emt 0:00:02]} Nd4+ {[%emt 0:00:11]} 38. Nxd4 {[%emt 0:00:06]} Kxd4 {[%emt 0:00:01]} 39. c4 {[%emt 0:00:07]} h5 {[%emt 0:00:02]} 40. Kf5 {[%emt 0:00:04]} g4 {[%emt 0:00:03]} 41. hxg4 {[%emt 0:00:01]} h4 {[%emt 0:00:01]} 42. Kf4 {[%emt 0:00:03]} h3 {[%emt 0:00:01]} 43. Kg3 {[%emt 0:00:01]} h2 {[%emt 0:00:01]} 44. Kxh2 {[%emt 0:00:01]} Ke4 {[%emt 0:00:01]} 45. Kg3 {[%emt 0:00:01]} Ke5 {[%emt 0:00:01]} 46. Kf3 {[%emt 0:00:02]} a6 {[%emt 0:00:01]} 47. Ke3 {[%emt 0:00:03]} b5 {[%emt 0:00:01]} 48. cxb5 {[%emt 0:00:02]} axb5 {[%emt 0:00:01]} 49. a4 {[%emt 0:00:01]} bxa4 {[%emt 0:00:02]} 50. bxa4 d5 51. a5 {[%emt 0:00:02]} d4+ {[%emt 0:00:01]} 52. Kd3 {[%emt 0:00:01]} Kd5 {[%emt 0:00:01]} 53. a6 {[%emt 0:00:01]} Kc6 {[%emt 0:00:01]} 54. g5 {[%emt 0:00:00]} Kb6 {[%emt 0:00:01]} 55. g6 {[%emt 0:00:01]} 1-0

[Event "GER-chW Blitz 2019"]
[Site "Magdeburg"]
[Date "2019.05.25"]
[Round "2.11"]
[White "Osmanodja, Filiz"]
[Black "Siegl, Melina"]
[Result "1-0"]
[ECO "B43"]
[WhiteElo "2260"]
[BlackElo "2029"]
[Annotator "NA"]
[PlyCount "53"]
[EventDate "2019.05.25"]
[EventType "tourn"]
[EventCountry "GER"]
[SourceTitle "playchess.com"]
[Source "ChessBase"]
[SourceQuality "1"]
[TimeControl "180+2"]

1. e4 {[%emt 0:00:00]} c5 {[%emt 0:00:00]} 2. Nc3 {[%emt 0:00:02]} e6 {[%emt 0:00:00]} 3. Nf3 {[%emt 0:00:01]} a6 {[%emt 0:00:03]} 4. d4 {[%emt 0:00:01]} cxd4 {[%emt 0:00:01]} 5. Nxd4 {[%emt 0:00:01]} d6 {[%emt 0:00:03]} 6. Be2 {[%emt 0:00:01]} b5 {[%emt 0:00:03]} 7. a3 {[%emt 0:00:05]} Bb7 {[%emt 0:00:02]} 8. Bf3 {[%emt 0:00:05]} Nd7 {[%emt 0:00:04]} 9. a4 {[%emt 0:00:17]} b4 {[%emt 0:00:11]} 10. Na2 {[%emt 0:00:01]} a5 {[%emt 0:00:09]} 11. c3 {[%emt 0:00:19]} bxc3 {[%emt 0:00:29]} 12. Nxc3 {[%emt 0:00:01]} Ne5 {[%emt 0:00:01]} 13. Be2 {[%emt 0:00:14]} Nf6 {[%emt 0:00:08]} 14. Bb5+ {[%emt 0:00:15]} Ned7 {[%emt 0:00:08]} 15. O-O {[%emt 0:00:14]} Rc8 {[%emt 0:00:35]} 16. Qb3 {[%emt 0:00:17]} d5 {[%emt 0:00:33]} 17. e5 {[%emt 0:00:33]} Ne4 {[%emt 0:00:10]} 18. Nxe4 {[%emt 0:00:11]} dxe4 19. Rd1 {[%emt 0:00:18]} Rc7 {[%emt 0:00:12]} 20. Bd2 {[%emt 0:00:10]} Qa8 {[%emt 0:00:09]} 21. Nxe6 {[%emt 0:00:09]} fxe6 {[%emt 0:00:12]} 22. Qxe6+ {[%emt 0:00:01]} Be7 {[%emt 0:00:01]} 23. Bg5 {[%emt 0:00:00]} Qd8 {[%emt 0:00:11]} 24. Rac1 {[%emt 0:00:17]} Rxc1 {[%emt 0:00:11]} 25. Bxd7+ {[%emt 0:00:05]} Kf8 {[%emt 0:00:01]} 26. Qf5+ {[%emt 0:00:04]} Bf6 {[%emt 0:00:01]} 27. Rxc1 {[%emt 0:00:03]} 1-0

[Event "GER-chW Blitz 2019"]
[Site "Magdeburg"]
[Date "2019.05.25"]
[Round "2.12"]
[White "Michna, Marta"]
[Black "Muetsch, Annmarie"]
[Result "1-0"]
[ECO "A45"]
[WhiteElo "2355"]
[BlackElo "2266"]
[Annotator "NA"]
[PlyCount "79"]
[EventDate "2019.05.25"]
[EventType "tourn"]
[EventCountry "GER"]
[SourceTitle "playchess.com"]
[Source "ChessBase"]
[SourceQuality "1"]
[TimeControl "180+2"]

1. d4 {[%emt 0:00:00]} Nf6 {[%emt 0:00:00]} 2. c3 {[%emt 0:00:02]} g6 {[%emt 0:00:02]} 3. Nf3 {[%emt 0:00:01]} Bg7 {[%emt 0:00:01]} 4. h3 {[%emt 0:00:01]} d6 {[%emt 0:00:01]} 5. Bf4 {[%emt 0:00:01]} O-O {[%emt 0:00:02]} 6. Nbd2 {[%emt 0:00:01]} Nbd7 {[%emt 0:00:02]} 7. e4 {[%emt 0:00:01]} c5 {[%emt 0:00:06]} 8. dxc5 {[%emt 0:00:05]} Nxc5 {[%emt 0:00:03]} 9. Qc2 {[%emt 0:00:01]} b6 {[%emt 0:00:05]} 10. b4 {[%emt 0:00:05]} Ne6 {[%emt 0:00:54]} 11. Be3 {[%emt 0:00:06]} Bb7 {[%emt 0:00:02]} 12. Bd3 {[%emt 0:00:31]} Rc8 {[%emt 0:00:02]} 13. O-O {[%emt 0:00:10]} Nh5 {[%emt 0:00:07]} 14. c4 {[%emt 0:00:14]} Bxa1 15. Rxa1 Nhf4 {[%emt 0:00:32]} 16. Bf1 {[%emt 0:00:01]} d5 {[%emt 0:00:24]} 17. exd5 {[%emt 0:00:13]} Nxd5 {[%emt 0:00:08]} 18. Bh6 {[%emt 0:00:00]} Ng7 {[%emt 0:00:10]} 19. Qa4 {[%emt 0:00:25]} Nf6 {[%emt 0:00:16]} 20. Rd1 {[%emt 0:00:40]} Qc7 {[%emt 0:00:03]} 21. g3 {[%emt 0:00:24]} Qb8 {[%emt 0:00:12]} 22. Re1 {[%emt 0:00:05]} Rfe8 {[%emt 0:00:06]} 23. Bg2 {[%emt 0:00:03]} Nf5 {[%emt 0:00:05]} 24. Bf4 {[%emt 0:00:01]} Qa8 {[%emt 0:00:01]} 25. g4 {[%emt 0:00:07]} Ng7 {[%emt 0:00:04]} 26. Be5 {[%emt 0:00:06]} Ne6 {[%emt 0:00:07]} 27. Qc2 {[%emt 0:00:09]} b5 {[%emt 0:00:04]} 28. c5 {[%emt 0:00:01]} Nd5 {[%emt 0:00:01]} 29. a3 {[%emt 0:00:02]} a5 {[%emt 0:00:02]} 30. Qb2 {[%emt 0:00:04]} axb4 {[%emt 0:00:03]} 31. axb4 {[%emt 0:00:00]} Qa4 {[%emt 0:00:01]} 32. Re4 {[%emt 0:00:12]} Ra8 {[%emt 0:00:08]} 33. Kh2 {[%emt 0:00:03]} Qa1 {[%emt 0:00:01]} 34. Qxa1 {[%emt 0:00:01]} Rxa1 {[%emt 0:00:03]} 35. Bxa1 {[%emt 0:00:01]} Ndf4 {[%emt 0:00:03]} 36. Re3 {[%emt 0:00:08]} Nxg2 {[%emt 0:00:03]} 37. Kxg2 {[%emt 0:00:01]} Nf4+ {[%emt 0:00:01]} 38. Kg3 {[%emt 0:00:00]} Nd5 {[%emt 0:00:01]} 39. Rb3 {[%emt 0:00:01]} e5 {[%emt 0:00:03]} 40. Bxe5 {[%emt 0:00:01]} 1-0

[Event "GER-chW Blitz 2019"]
[Site "Magdeburg"]
[Date "2019.05.25"]
[Round "3.1"]
[White "Muetsch, Annmarie"]
[Black "Roesler, Hannah Clara Hed"]
[Result "1-0"]
[ECO "B37"]
[WhiteElo "2266"]
[BlackElo "1619"]
[Annotator "NA"]
[PlyCount "89"]
[EventDate "2019.05.25"]
[EventType "tourn"]
[EventCountry "GER"]
[SourceTitle "playchess.com"]
[Source "ChessBase"]
[SourceQuality "1"]
[TimeControl "180+2"]

1. e4 {[%emt 0:00:00]} c5 {[%emt 0:00:00]} 2. Nf3 {[%emt 0:00:00]} g6 {[%emt 0:00:01]} 3. c4 {[%emt 0:00:02]} Nc6 {[%emt 0:00:03]} 4. d4 {[%emt 0:00:03]} cxd4 {[%emt 0:00:02]} 5. Nxd4 {[%emt 0:00:01]} Bg7 {[%emt 0:00:02]} 6. Nc2 {[%emt 0:00:01]} Nf6 {[%emt 0:00:07]} 7. Nc3 {[%emt 0:00:01]} O-O {[%emt 0:00:12]} 8. Be2 {[%emt 0:00:04]} d6 {[%emt 0:00:11]} 9. Be3 {[%emt 0:00:02]} Be6 {[%emt 0:00:33]} 10. O-O {[%emt 0:00:03]} Nd7 {[%emt 0:00:12]} 11. Qd2 {[%emt 0:00:51]} Nc5 {[%emt 0:00:24]} 12. f3 {[%emt 0:00:17]} Qa5 {[%emt 0:00:24]} 13. Nd4 {[%emt 0:00:26]} Nxd4 {[%emt 0:00:09]} 14. Bxd4 {[%emt 0:00:01]} Bxd4+ {[%emt 0:00:03]} 15. Qxd4 {[%emt 0:00:01]} Bd7 {[%emt 0:00:07]} 16. Kh1 {[%emt 0:00:10]} Rfc8 {[%emt 0:00:12]} 17. Nd5 {[%emt 0:00:03]} Qd8 {[%emt 0:00:16]} 18. Rac1 {[%emt 0:00:13]} a5 {[%emt 0:00:01]} 19. Rfd1 {[%emt 0:00:07]} a4 {[%emt 0:00:02]} 20. f4 {[%emt 0:00:11]} Ra6 {[%emt 0:00:23]} 21. e5 {[%emt 0:00:10]} dxe5 {[%emt 0:00:06]} 22. fxe5 {[%emt 0:00:03]} Qf8 {[%emt 0:00:06]} 23. Bf3 {[%emt 0:00:07]} Be6 {[%emt 0:00:01]} 24. Nf4 {[%emt 0:00:11]} Bf5 {[%emt 0:00:05]} 25. Qe3 {[%emt 0:00:14]} Rb6 {[%emt 0:00:03]} 26. Rd2 {[%emt 0:00:05]} Rd8 {[%emt 0:00:03]} 27. Rxd8 Qxd8 {[%emt 0:00:01]} 28. Qxc5 {[%emt 0:00:06]} Rc6 {[%emt 0:00:01]} 29. Bxc6 {[%emt 0:00:03]} bxc6 {[%emt 0:00:01]} 30. Qxc6 {[%emt 0:00:08]} Qd2 {[%emt 0:00:02]} 31. Rf1 {[%emt 0:00:05]} Bd3 {[%emt 0:00:01]} 32. Qd5 {[%emt 0:00:06]} Kg7 {[%emt 0:00:04]} 33. Qxd3 {[%emt 0:00:02]} Qxb2 {[%emt 0:00:01]} 34. e6 {[%emt 0:00:01]} f6 {[%emt 0:00:01]} 35. Qd7 {[%emt 0:00:01]} Qxa2 {[%emt 0:00:04]} 36. Qxe7+ {[%emt 0:00:02]} Kh6 {[%emt 0:00:01]} 37. Qf8+ {[%emt 0:00:02]} Kg5 {[%emt 0:00:02]} 38. e7 {[%emt 0:00:03]} Qxc4 {[%emt 0:00:04]} 39. Re1 {[%emt 0:00:04]} Qc3 {[%emt 0:00:03]} 40. Rg1 {[%emt 0:00:02]} Qe3 {[%emt 0:00:02]} 41. Nh3+ {[%emt 0:00:02]} Kf5 {[%emt 0:00:01]} 42. e8=Q {[%emt 0:00:02]} Qxe8 43. Qxe8 a3 {[%emt 0:00:06]} 44. Qd7+ {[%emt 0:00:04]} Ke5 {[%emt 0:00:01]} 45. Re1# {[%emt 0:00:01] Kf4} 1-0